bitfinex/quotes_SOLUSD_20240814
["timestamp","ask_amount","ask_price","bid_price","bid_amount"]
[1723633663913,6.378,147.0,146.9,42.47706753]
[1723633664341,15.6612,146.98,146.9,3.53706753]
[1723633665039,6.378,146.97,146.9,3.53706753]
[1723633665548,6.378,146.95,146.9,3.53706753]
[1723633667229,6.378,146.95,146.91,0.12549]
[1723633667438,6.378,146.95,146.91,0.25098]
[1723633667741,6.378,146.95,146.9,3.53706753]
[1723633668423,6.378,146.95,146.87,20.8320436]
[1723633668736,6.378,146.95,146.87,0.8320436]
[1723633669739,16.5531,146.94,146.87,0.8320436]
[1723633669945,6.2795,146.93,146.87,0.8320436]
[1723633670135,45.2195,146.93,146.87,0.8320436]
[1723633670442,6.2795,146.91,146.79,38.94]
[1723633670828,6.2795,146.91,146.79,46.01503642]
[1723633671523,6.2795,146.91,146.81,38.94]
[1723633671729,6.2795,146.91,146.79,7.07503642]
[1723633671950,6.2795,146.91,146.8,0.12549]
[1723633672145,6.2795,146.91,146.81,38.94]
[1723633672325,6.2795,146.91,146.82,0.25098]
[1723633672526,6.2795,146.91,146.84,0.12549]
[1723633672726,6.2795,146.91,146.84,45.50196]
[1723633673034,6.2795,146.91,146.85,38.94]
[1723633673228,6.2795,146.91,146.86,45.50196]
[1723633674540,6.2795,146.91,146.88,0.12549]
[1723633674737,6.2795,146.91,146.88,45.37647]
[1723633674951,6.2795,146.91,146.88,45.50196]
[1723633675150,6.2795,146.91,146.88,45.37647]
[1723633676822,6.2795,146.91,146.89,0.12549]
[1723633677327,6.2795,146.91,146.9,0.12549]
[1723633677749,6.2795,146.91,146.9,0.25098]
[1723633677929,6.2795,146.91,146.9,0.37647]
[1723633678650,6.2795,146.91,146.9,0.25098]
[1723633678824,6.2795,146.91,146.89,0.12549]
[1723633679030,6.2795,146.91,146.89,0.25098]
[1723633679452,6.2795,146.91,146.9,0.12549]
[1723633679659,6.1549,146.95,146.91,0.12549]
[1723633679851,6.1549,146.95,146.91,0.37647]
[1723633680036,6.1549,146.95,146.92,0.12549]
[1723633680351,6.1549,146.95,146.93,0.12549]
[1723633680526,6.1549,146.95,146.93,0.25098]
[1723633681535,6.2725,146.99,146.95,0.12549]
[1723633681738,6.2725,146.99,146.95,39.19098]
[1723633681945,6.2725,146.99,146.97,0.12549]
[1723633682165,15.0038,147.0,146.97,45.25098]
[1723633682337,15.0038,147.0,146.98,0.12549]
[1723633682689,6.2725,147.03,146.98,0.12549]
[1723633682690,6.2725,147.03,146.99,0.12549]
[1723633682971,6.2725,147.03,146.99,0.37647]
[1723633683143,6.2725,147.03,147.0,0.12549]
[1723633683341,6.2725,147.03,147.01,0.12549]
[1723633683538,15.0038,147.04,147.01,0.37647]
[1723633683852,15.0038,147.04,147.02,0.12549]
[1723633684056,15.0038,147.04,147.02,0.37647]
[1723633684362,15.0038,147.04,147.03,0.12549]
[1723633685447,15.0038,147.04,146.95,38.94]
[1723633685754,15.0038,147.04,146.93,38.94]
[1723633687162,15.0038,147.04,146.94,20.0]
[1723633687658,6.6473,147.03,146.94,20.0]
[1723633688051,6.6473,147.03,146.92,20.0]
[1723633689158,6.6473,147.03,146.93,0.12549]
[1723633689737,38.94,147.02,146.92,0.12549]
[1723633690040,6.3427,147.0,146.92,0.12549]
[1723633690242,45.2827,147.0,146.87,38.94]
[1723633690443,61.38496,146.99,146.85,38.94]
[1723633690682,16.00849,146.99,146.85,38.94]
[1723633691142,15.883,146.99,146.87,38.94]
[1723633691582,15.883,146.99,146.89,38.94]
[1723633691969,15.883,146.99,146.91,0.12549]
[1723633692167,15.883,146.99,146.91,45.50196]
[1723633692754,15.883,146.99,146.93,0.12549]
[1723633692963,15.883,146.99,146.93,45.37647]
[1723633693165,15.883,146.99,146.8,20.0]
[1723633693355,15.883,146.99,146.87,20.0]
[1723633693554,15.883,146.99,146.82,6.506]
[1723633693778,6.2089,146.97,146.82,6.506]
[1723633693980,6.2089,146.97,146.84,38.94]
[1723633694487,6.2089,146.97,146.79,67.5152095]
[1723633694488,6.2089,146.97,146.83,38.94]
[1723633694786,0.12549,146.96,146.83,38.94]
[1723633695151,16.6491,146.95,146.83,38.94]
[1723633695855,16.6491,146.95,146.84,0.12549]
[1723633696067,16.6491,146.95,146.84,20.12549]
[1723633696494,16.6491,146.95,146.86,0.12549]
[1723633697067,16.6491,146.95,146.86,0.25098]
[1723633697264,16.6491,146.95,146.87,0.12549]
[1723633697471,16.6491,146.95,146.87,45.25098]
[1723633698057,6.1297,146.94,146.86,20.0]
[1723633698271,6.1297,146.94,146.84,20.0]
[1723633700387,6.1297,146.94,146.85,0.12549]
[1723633700686,15.2953,146.93,146.85,45.37647]
[1723633700850,6.3984,146.92,146.85,45.37647]
[1723633701057,15.2953,146.91,146.85,45.12549]
[1723633701251,15.2953,146.91,146.84,20.0]
[1723633701456,15.2953,146.91,146.8,20.0]
[1723633701755,6.371,146.9,146.79,38.94]
[1723633703157,6.371,146.9,146.81,0.12549]
[1723633703996,6.371,146.9,146.81,39.06549]
[1723633704182,6.371,146.9,146.82,20.0]
[1723633705476,6.371,146.9,146.83,0.25098]
[1723633705967,6.371,146.9,146.83,45.25098]
[1723633706169,6.371,146.9,146.85,0.12549]
[1723633706375,6.371,146.9,146.85,0.25098]
[1723633707561,6.371,146.9,146.86,0.12549]
[1723633707763,6.371,146.9,146.87,0.12549]
[1723633708885,6.371,146.9,146.87,0.37647]
[1723633709184,6.371,146.9,146.88,0.12549]
[1723633709357,6.371,146.9,146.88,0.25098]
[1723633710490,6.371,146.9,146.87,0.12549]
[1723633712577,6.371,146.9,146.87,39.44196]
[1723633712778,6.371,146.9,146.89,0.12549]
[1723633712985,15.2953,146.91,146.89,0.50196]
[1723633713289,6.1778,146.94,146.89,59.44196]
[1723633713590,16.3381,146.95,146.92,0.12549]
[1723633713764,16.3381,146.95,146.92,65.50196]
[1723633713967,6.0885,146.97,146.92,96.65196]
[1723633714169,6.0885,146.97,146.95,0.12549]
[1723633714476,6.0885,146.97,146.95,45.50196]
[1723633714874,6.0885,146.97,146.95,45.37647]
[1723633715090,6.0885,146.97,146.95,45.0]
[1723633715684,6.0885,146.97,146.93,0.12549]
[1723633715891,6.0885,146.97,146.93,45.12549]
[1723633716081,6.0885,146.97,146.92,45.12549]
[1723633717191,6.0885,146.97,146.91,20.0]
[1723633717391,6.0885,146.97,146.9,20.0]
[1723633718497,6.0885,146.97,146.91,0.12549]
[1723633718679,6.0885,146.97,146.91,45.50196]
[1723633719769,6.0885,146.97,146.9,20.0]
[1723633719966,6.0885,146.97,146.88,20.0]
[1723633720983,16.3744,146.96,146.88,20.0]
[1723633721371,16.3744,146.96,146.89,45.12549]
[1723633721984,6.6607,146.95,146.83,38.95]
[1723633722187,6.6607,146.93,146.81,38.95]
[1723633723499,15.6283,146.92,146.81,38.95]
[1723633724019,15.6283,146.92,146.82,20.0]
[1723633725097,15.6283,146.92,146.83,45.50196]
[1723633725299,6.2626,146.91,146.83,45.12549]
[1723633725478,6.2626,146.91,146.83,0.12549]
[1723633725795,6.2626,146.91,146.81,38.95]
[1723633727282,6.2626,146.91,146.82,65.50196]
[1723633731991,16.1133,146.9,146.82,20.0]
[1723633732706,16.1133,146.9,146.8,20.0]
[1723633733803,16.1133,146.9,146.81,45.50196]
[1723633734025,16.1133,146.9,146.83,0.12549]
[1723633734309,16.1133,146.9,146.83,45.0]
[1723633737206,16.1133,146.9,146.82,20.0]
[1723633737413,16.1133,146.9,146.81,0.50196]
[1723633737583,16.1133,146.9,146.81,45.50196]
[1723633737789,16.1133,146.9,146.82,20.0]
[1723633738210,16.1133,146.9,146.84,0.12549]
[1723633738402,16.1133,146.9,146.83,45.12549]
[1723633738887,16.1133,146.9,146.83,45.0]
[1723633739087,16.1133,146.9,146.82,20.12549]
[1723633739323,16.1133,146.9,146.83,45.0]
[1723633739502,16.1133,146.9,146.83,0.12549]
[1723633739695,16.1133,146.9,146.83,20.12549]
[1723633739895,16.1133,146.9,146.83,20.0]
[1723633740307,16.1133,146.9,146.85,0.12549]
[1723633741416,16.1133,146.9,146.85,0.50196]
[1723633741619,16.1133,146.9,146.87,0.12549]
[1723633741804,16.1133,146.9,146.88,31.2]
[1723633741996,15.4203,146.93,146.89,0.50196]
[1723633742198,15.4203,146.93,146.89,65.37647]
[1723633742423,15.4203,146.93,146.89,65.25098]
[1723633742598,15.4203,146.93,146.88,0.12549]
[1723633742797,15.4203,146.93,146.87,65.37647]
[1723633743003,15.4203,146.93,146.88,0.12549]
[1723633744325,15.4203,146.93,146.88,31.32549]
[1723633744542,15.4203,146.93,146.89,45.25098]
[1723633744699,15.4203,146.93,146.9,0.12549]
[1723633744905,15.4203,146.93,146.9,31.32549]
[1723633745122,15.4203,146.93,146.92,31.32549]
[1723633745300,6.4401,146.95,146.93,0.12549]
[1723633745505,6.4401,146.95,146.93,0.37647]
[1723633745828,6.4401,146.95,146.93,45.37647]
[1723633746135,15.4203,146.97,146.93,45.37647]
[1723633746327,15.4203,146.97,146.95,0.12549]
[1723633746498,15.4203,146.97,146.95,45.0]
[1723633746701,15.4203,146.97,146.94,0.25098]
[1723633747105,15.4203,146.97,146.94,31.45098]
[1723633747300,15.4203,146.97,146.95,45.12549]
[1723633748525,15.4203,146.97,146.96,0.12549]
[1723633748738,6.4603,146.99,146.96,31.57647]
[1723633748923,15.8524,147.01,146.97,45.0]
[1723633749228,6.5967,147.03,146.98,51.57647]
[1723633749431,6.5967,147.03,147.0,0.12549]
[1723633749816,6.5967,147.03,147.0,0.37647]
[1723633750332,6.5967,147.03,146.99,45.0]
[1723633751234,6.5967,147.03,147.0,0.25098]
[1723633751430,6.5967,147.03,147.0,0.37647]
[1723633751934,6.5967,147.03,147.0,0.12549]
[1723633752320,6.5967,147.03,147.0,0.25098]
[1723633754070,6.5967,147.03,146.99,45.12549]
[1723633754237,6.5967,147.03,146.99,45.0]
[1723633754637,6.5967,147.03,147.0,0.37647]
[1723633755349,6.5967,147.03,146.99,45.0]
[1723633759654,6.5967,147.03,147.0,0.12549]
[1723633760958,6.5967,147.03,146.99,45.0]
[1723633762662,6.5967,147.03,147.0,0.37647]
[1723633763164,16.5113,147.05,147.0,0.37647]
[1723633763358,16.5113,147.05,147.01,0.25098]
[1723633763567,16.5113,147.05,147.02,0.25098]
[1723633763735,6.0137,147.07,147.03,0.25098]
[1723633764050,6.0137,147.07,147.04,0.12549]
[1723633764553,6.0137,147.07,147.03,45.25098]
[1723633764738,6.0137,147.07,147.03,45.12549]
[1723633766357,6.0137,147.07,146.96,47.0695]
[1723633766751,15.6706,147.06,146.94,31.2]
[1723633767057,46.8706,147.06,146.94,31.2]
[1723633767750,15.6706,147.06,146.94,31.2]
[1723633767955,15.6706,147.06,146.95,0.25098]
[1723633768147,15.6706,147.06,146.95,20.25098]
[1723633768549,15.6706,147.06,146.95,20.0]
[1723633769264,46.8706,147.06,146.92,15.5234]
[1723633769463,31.2,147.04,146.92,15.5234]
[1723633769763,6.0078,147.03,146.92,46.7234]
[1723633770074,6.0078,147.03,146.94,31.2]
[1723633770661,6.0078,147.03,146.86,54.78997193]
[1723633770662,47.4108,147.02,146.9,31.2]
[1723633772260,47.4108,147.02,146.91,65.50196]
[1723633772469,16.2108,147.02,146.93,0.12549]
[1723633772654,16.2108,147.02,146.93,45.50196]
[1723633774939,47.4108,147.02,146.93,45.37647]
[1723633775164,6.635,147.01,146.92,45.0]
[1723633776343,6.635,147.01,146.93,0.12549]
[1723633776745,6.635,147.01,146.93,0.25098]
[1723633777163,6.635,147.01,146.95,0.12549]
[1723633778885,6.635,147.01,146.95,45.25098]
[1723633779248,6.635,147.01,146.97,0.12549]
[1723633780285,6.635,147.01,146.95,45.0]
[1723633780453,16.2108,147.02,146.96,31.32549]
[1723633780769,16.2108,147.02,146.98,0.12549]
[1723633782771,6.0321,147.03,146.98,31.32549]
[1723633782954,6.0321,147.03,146.99,45.37647]
[1723633783290,6.0321,147.03,147.0,0.12549]
[1723633783650,15.9736,147.06,147.0,31.32549]
[1723633783848,15.9736,147.06,147.02,0.12549]
[1723633784095,15.9736,147.06,147.01,45.25098]
[1723633784256,15.9736,147.06,147.01,45.12549]
[1723633787151,15.9736,147.06,147.02,0.12549]
[1723633787346,15.9736,147.06,147.01,45.12549]
[1723633788251,15.9736,147.06,147.0,0.12549]
[1723633788452,15.9736,147.06,146.99,0.12549]
[1723633788650,15.9736,147.06,146.97,20.0]
[1723633789778,15.9736,147.06,146.97,0.12549]
[1723633789952,15.9736,147.06,146.97,0.25098]
[1723633790851,15.9736,147.06,146.99,0.12549]
[1723633791053,15.9736,147.06,146.99,0.25098]
[1723633791275,15.9736,147.06,146.99,45.12549]
[1723633792760,15.9736,147.06,147.0,0.12549]
[1723633794761,15.9736,147.06,147.01,0.12549]
[1723633795059,15.9736,147.06,147.01,45.25098]
[1723633797782,15.9736,147.06,147.02,0.12549]
[1723633798081,15.9736,147.06,147.03,0.12549]
[1723633798281,6.1956,147.07,147.03,65.37647]
[1723633798578,6.1956,147.07,147.05,0.12549]
[1723633798778,6.1956,147.07,147.05,45.37647]
[1723633798954,16.5535,147.1,147.05,45.37647]
[1723633799155,16.5535,147.1,147.06,0.12549]
[1723633799371,16.5535,147.1,147.05,45.12549]
[1723633799678,16.5535,147.1,147.04,0.12549]
[1723633799980,16.5535,147.1,147.01,20.0]
[1723633800480,16.5535,147.1,146.99,20.0]
[1723633801083,46.5624,147.08,146.94,16.5274]
[1723633801258,6.0473,147.07,146.96,31.2]
[1723633801458,15.3624,147.06,146.96,31.2]
[1723633802259,15.3624,147.06,146.98,31.2]
[1723633802904,15.3624,147.06,147.0,0.12549]
[1723633803109,15.3624,147.06,147.0,0.37647]
[1723633803789,15.3624,147.06,147.01,0.12549]
[1723633803974,15.3624,147.06,147.01,0.25098]
[1723633804273,15.3624,147.06,147.0,0.50196]
[1723633804470,15.3624,147.06,147.01,0.12549]
[1723633806689,15.3624,147.06,147.0,0.25098]
[1723633810095,15.3624,147.06,147.02,0.12549]
[1723633810283,6.0473,147.07,147.02,0.12549]
[1723633810284,6.0473,147.07,147.05,0.12549]
[1723633810487,15.2211,147.1,147.05,45.50196]
[1723633811417,15.2211,147.1,147.06,31.2]
[1723633811600,15.2211,147.1,147.07,45.50196]
[1723633812297,15.2211,147.1,147.07,45.37647]
[1723633814993,6.5902,147.11,147.07,43.9621524]
[1723633815413,15.325,147.14,147.08,32.5544068]
[1723633815620,15.325,147.14,147.09,20.12549]
[1723633815830,15.325,147.14,147.1,31.2]
[1723633816330,15.325,147.14,147.11,1.35357822]
[1723633816906,6.2107,147.15,147.11,1.35357822]
[1723633817110,6.2107,147.15,147.12,0.12549]
[1723633817301,6.2107,147.15,147.12,31.70196]
[1723633817702,6.2107,147.15,147.11,45.0]
[1723633818126,6.2107,147.15,147.1,31.32549]
[1723633818317,6.2107,147.15,147.11,0.12549]
[1723633819436,6.2107,147.15,147.11,0.50196]
[1723633819607,6.2107,147.15,147.11,45.50196]
[1723633820230,15.5691,147.18,147.11,45.50196]
[1723633820435,15.5691,147.18,147.13,0.12549]
[1723633822519,15.5691,147.18,147.14,31.2]
[1723633823639,6.0939,147.19,147.14,31.2]
[1723633825341,6.0939,147.19,147.15,0.12549]
[1723633825560,15.7745,147.22,147.15,45.50196]
[1723633825926,15.7745,147.22,147.18,31.2]
[1723633826119,0.8320436,147.24,147.21,0.12549]
[1723633826327,0.8320436,147.24,147.21,0.25098]
[1723633827239,0.8320436,147.24,147.22,31.2]
[1723633828841,0.8320436,147.24,147.2,0.12549]
[1723633829053,0.8320436,147.24,147.19,65.25098]
[1723633829235,0.8320436,147.24,147.19,20.12549]
[1723633829425,0.8320436,147.24,147.19,20.0]
[1723633829744,0.8320436,147.24,147.11,15.6219]
[1723633829931,0.8320436,147.24,147.14,31.2]
[1723633830133,0.8320436,147.24,147.16,31.2]
[1723633831156,52.947,147.23,147.11,15.6219]
[1723633831361,52.947,147.23,147.11,31.2]
[1723633832864,52.947,147.23,147.12,20.0]
[1723633833071,21.747,147.23,147.13,31.2]
[1723633833231,21.747,147.23,147.16,0.12549]
[1723633833430,21.747,147.23,147.16,45.50196]
[1723633834333,52.947,147.23,147.14,20.0]
[1723633834534,52.947,147.23,147.12,20.0]
[1723633835535,52.947,147.23,147.13,0.12549]
[1723633835735,52.947,147.23,147.13,0.50196]
[1723633835936,52.947,147.23,147.13,45.50196]
[1723633836167,21.747,147.23,147.15,0.12549]
[1723633836546,21.747,147.23,147.14,20.0]
[1723633837064,21.747,147.23,147.15,0.12549]
[1723633840048,15.0753,147.2,147.08,31.2]
[1723633840257,15.0753,147.2,147.09,20.0]
[1723633840651,15.0753,147.2,147.1,31.2]
[1723633840967,15.0753,147.2,147.12,31.2]
[1723633841655,15.0753,147.2,147.13,45.50196]
[1723633842542,15.0753,147.2,147.14,31.2]
[1723633842841,15.0753,147.2,147.15,45.50196]
[1723633843038,15.0753,147.2,147.14,31.2]
[1723633843274,15.0753,147.2,147.13,0.12549]
[1723633843467,15.0753,147.2,147.13,65.50196]
[1723633843646,15.0753,147.2,147.13,65.37647]
[1723633844254,15.0753,147.2,147.14,0.25098]
[1723633847962,15.0753,147.2,147.14,0.12549]
[1723633848577,15.0753,147.2,147.14,0.37647]
[1723633852267,15.0753,147.2,147.15,0.12549]
[1723633852760,15.0753,147.2,147.15,0.37647]
[1723633853479,15.0753,147.2,147.16,0.12549]
[1723633853673,15.0753,147.2,147.16,0.37647]
[1723633854382,15.0753,147.2,147.16,31.57647]
[1723633854581,16.2935436,147.24,147.19,0.12549]
[1723633854759,16.2935436,147.24,147.21,0.12549]
[1723633854959,16.2935436,147.24,147.21,0.50196]
[1723633855160,16.2935436,147.24,147.21,45.50196]
[1723633855474,0.8320436,147.24,147.23,0.12549]
[1723633855673,0.8320436,147.24,147.23,45.50196]
[1723633856463,0.8320436,147.24,147.23,76.70196]
[1723633857185,0.8320436,147.24,147.23,96.70196]
[1723633857474,0.8320436,147.24,147.23,76.70196]
[1723633857673,0.8320436,147.24,147.23,96.70196]
[1723633858862,15.4837,147.28,147.23,96.70196]
[1723633859080,15.4837,147.28,147.25,0.12549]
[1723633859263,15.4837,147.28,147.25,45.50196]
[1723633859583,15.4837,147.28,147.26,31.2]
[1723633859878,15.4837,147.28,147.27,0.50196]
[1723633860801,16.4683,147.32,147.27,45.50196]
[1723633860957,16.4683,147.32,147.29,0.12549]
[1723633861165,16.4683,147.32,147.29,45.50196]
[1723633861786,6.577,147.34,147.29,45.50196]
[1723633864875,6.577,147.34,147.31,0.12549]
[1723633865179,6.577,147.34,147.31,0.50196]
[1723633865393,6.577,147.34,147.31,45.50196]
[1723633866081,6.577,147.34,147.3,31.2]
[1723633866276,6.577,147.34,147.29,0.37647]
[1723633866477,6.577,147.34,147.3,0.25098]
[1723633866679,6.577,147.34,147.32,0.12549]
[1723633866901,6.577,147.34,147.32,0.25098]
[1723633867273,6.577,147.34,147.26,31.2]
[1723633867477,6.577,147.34,147.27,0.12549]
[1723633867670,6.577,147.34,147.27,20.12549]
[1723633868286,6.577,147.34,147.28,31.2]
[1723633868489,6.577,147.34,147.29,0.12549]
[1723633869276,6.577,147.34,147.3,0.12549]
[1723633869585,6.577,147.34,147.3,0.25098]
[1723633871395,16.5016,147.33,147.24,31.2]
[1723633872774,16.5016,147.33,147.22,31.2]
[1723633874279,16.5016,147.33,147.24,0.12549]
[1723633874595,16.5016,147.33,147.24,0.25098]
[1723633874897,16.5016,147.33,147.24,0.12549]
[1723633875283,16.5016,147.33,147.24,0.25098]
[1723633875490,16.5016,147.33,147.24,45.25098]
[1723633875875,16.1833,147.31,147.23,20.0]
[1723633876088,47.5744,147.29,147.18,31.2]
[1723633876296,16.3744,147.27,147.16,31.2]
[1723633876970,16.3744,147.27,147.18,31.2]
[1723633877594,16.3744,147.27,147.2,31.2]
[1723633877796,16.3744,147.27,147.21,45.25098]
[1723633878093,16.3744,147.27,147.23,0.12549]
[1723633878301,16.3744,147.27,147.23,45.25098]
[1723633878482,16.3744,147.27,147.24,0.25098]
[1723633878689,16.3744,147.27,147.25,0.25098]
[1723633878998,16.3744,147.27,147.24,0.12549]
[1723633879171,16.3744,147.27,147.24,0.37647]
[1723633880900,16.3744,147.27,147.22,20.0]
[1723633881195,16.3744,147.27,147.17,31.2]
[1723633881994,6.4113,147.26,147.16,7.08311007]
[1723633882182,16.0294,147.25,147.13,31.2]
[1723633882582,47.2294,147.25,147.13,31.2]
[1723633882796,47.2294,147.25,147.08,6.3076]
[1723633882797,6.3077,147.24,147.11,31.2]
[1723633883503,6.3077,147.24,147.13,31.2]
[1723633884293,6.3077,147.24,147.15,0.12549]
[1723633884804,6.3077,147.24,147.15,0.50196]
[1723633884995,6.3077,147.24,147.15,45.50196]
[1723633885304,6.3077,147.24,147.17,0.12549]
[1723633885602,6.3077,147.24,147.17,0.25098]
[1723633885810,16.1305,147.23,147.1,7.08570827]
[1723633885992,16.1305,147.23,147.12,31.2]
[1723633886178,16.1305,147.23,147.13,20.0]
[1723633887300,16.1305,147.23,147.14,76.70196]
[1723633887512,16.1305,147.23,147.16,0.12549]
[1723633887814,16.1305,147.23,147.16,45.50196]
[1723633889104,16.1305,147.23,147.16,76.70196]
[1723633889299,16.1305,147.23,147.16,45.50196]
[1723633890706,16.1305,147.23,147.16,0.50196]
[1723633890907,16.1305,147.23,147.16,0.12549]
[1723633894600,6.0563,147.22,147.13,20.0]
[1723633894799,6.0563,147.22,147.12,31.2]
[1723633895916,6.0563,147.22,147.14,31.32549]
[1723633896221,6.0563,147.22,147.16,0.12549]
[1723633903032,6.0563,147.22,147.18,12.42]
[1723633903209,6.0563,147.22,147.19,0.50196]
[1723633904044,6.0563,147.22,147.2,12.42]
[1723633904211,6.0563,147.22,147.21,0.50196]
[1723633904398,16.1305,147.23,147.21,0.50196]
[1723633906805,6.3546,147.26,147.21,0.50196]
[1723633907035,6.3546,147.26,147.21,51.53196]
[1723633907219,6.3546,147.26,147.23,0.12549]
[1723633907416,6.3546,147.26,147.23,0.37647]
[1723633907607,6.3546,147.26,147.23,0.12549]
[1723633908130,6.3546,147.26,147.23,0.37647]
[1723633908735,6.3546,147.26,147.17,31.03]
[1723633908935,6.3546,147.26,147.18,20.12549]
[1723633909146,6.3546,147.26,147.18,0.12549]
[1723633909440,6.3546,147.26,147.2,0.12549]
[1723633909605,6.3546,147.26,147.15,20.0]
[1723633910813,6.3546,147.26,147.17,0.12549]
[1723633911016,6.3546,147.26,147.17,20.37647]
[1723633911234,6.3546,147.26,147.18,45.12549]
[1723633911434,6.3546,147.26,147.19,20.37647]
[1723633911808,6.3546,147.26,147.21,0.12549]
[1723633912018,6.3546,147.26,147.21,0.37647]
[1723633913108,6.3546,147.26,147.22,0.12549]
[1723633913321,6.3546,147.26,147.22,0.25098]
[1723633914119,6.3546,147.26,147.23,0.12549]
[1723633914314,6.3546,147.26,147.23,0.25098]
[1723633914515,16.4277,147.27,147.24,0.25098]
[1723633914721,6.4146,147.31,147.25,0.25098]
[1723633915028,16.392,147.3,147.25,0.12549]
[1723633915925,16.392,147.3,147.24,0.25098]
[1723633918446,16.392,147.3,147.23,0.12549]
[1723633918648,16.392,147.3,147.15,7.08174945]
[1723633918649,47.422,147.3,147.15,7.08174945]
[1723633918942,31.03,147.28,147.17,31.03]
[1723633919131,16.2294,147.27,147.15,38.11174945]
[1723633919334,16.2294,147.27,147.16,8.15931972]
[1723633919540,6.5465,147.26,147.15,38.11174945]
[1723633920245,6.5465,147.26,147.15,48.82936804]
[1723633920922,6.5465,147.26,147.17,0.12549]
[1723633921123,6.5465,147.26,147.17,65.50196]
[1723633921317,6.5465,147.26,147.17,45.50196]
[1723633921535,6.5465,147.26,147.19,0.12549]
[1723633921756,6.5465,147.26,147.19,0.50196]
[1723633922238,6.5465,147.26,147.19,76.53196]
[1723633922440,6.5465,147.26,147.21,0.12549]
[1723633922643,6.5465,147.26,147.21,76.53196]
[1723633922845,6.5465,147.26,147.23,0.12549]
[1723633923137,6.5465,147.26,147.23,0.50196]
[1723633923545,16.2294,147.27,147.23,76.53196]
[1723633923742,16.2294,147.27,147.25,0.12549]
[1723633924146,16.2294,147.27,147.25,0.25098]
[1723633924640,16.2294,147.27,147.26,0.12549]
[1723633925024,16.2294,147.27,147.26,0.37647]
[1723633926446,22.2713,147.3,147.27,0.12549]
[1723633926630,22.2713,147.3,147.27,0.25098]
[1723633927837,22.2713,147.3,147.27,0.12549]
[1723633928042,22.2713,147.3,147.24,20.0]
[1723633928241,22.2713,147.3,147.21,31.03]
[1723633928242,22.2713,147.3,147.25,0.50196]
[1723633929441,22.2713,147.3,147.25,31.53196]
[1723633929641,22.2713,147.3,147.27,0.12549]
[1723633929948,22.2713,147.3,147.27,0.50196]
[1723633931654,22.7183,147.34,147.27,0.50196]
[1723633933038,22.7183,147.34,147.27,0.37647]
[1723633934454,31.03,147.33,147.24,20.0]
[1723633934659,31.03,147.33,147.25,0.25098]
[1723633934842,31.03,147.33,147.25,0.12549]
[1723633935846,31.03,147.33,147.25,0.25098]
[1723633936361,31.03,147.33,147.26,0.12549]
[1723633936562,31.03,147.33,147.25,0.25098]
[1723633937058,31.03,147.33,147.2,25.54794444]
[1723633937239,31.03,147.33,147.19,37.3415]
[1723633937240,6.4569,147.3,147.19,31.03]
[1723633937441,31.03,147.27,147.17,7.08340351]
[1723633937645,31.03,147.27,147.15,31.03]
[1723633938346,31.03,147.27,147.15,42.34127558]
[1723633938553,31.03,147.27,147.16,11.31127558]